fUST/lending_fUST_20240124
["ID","MTS","AMOUNT","RATE_DAILY","PERIOD"]
[312594040,1706041853579,-500.0,0.00041917,31]
[312594041,1706041853588,-500.0,0.00041917,31]
[312594042,1706041853597,-500.0,0.00041917,31]
[312594043,1706041853607,-500.0,0.00041917,31]
[312594044,1706041853615,-500.0,0.00041917,31]
[312594045,1706041853625,-597.98,0.00041917,31]
[312594046,1706041853634,-500.0,0.00041917,31]
[312594047,1706041853644,-623.2,0.00041917,31]
[312594048,1706041853653,-500.0,0.00041917,31]
[312594049,1706041853662,-762.23,0.00041917,31]
[312594050,1706041853671,-500.0,0.00041917,31]
[312594051,1706041853680,-500.0,0.00041917,31]
[312594052,1706041853689,-500.0,0.00041917,31]
[312594053,1706041853699,-500.0,0.00041917,2]
[312594054,1706041853710,-905.67,0.00041917,31]
[312594055,1706041853719,-500.0,0.00041917,31]
[312594056,1706041853727,-315.85260123,0.00041917,31]
[312594057,1706041853736,-500.0,0.00041917,31]
[312594058,1706041853745,-500.0,0.00041917,7]
[312594059,1706041853755,-500.0,0.00041917,31]
[312594060,1706041853764,-500.0,0.00041917,31]
[312594061,1706041853772,-500.0,0.00041917,31]
[312594062,1706041853782,-500.0,0.00041917,31]
[312594063,1706041853791,-528.32,0.00041917,31]
[312594064,1706041853800,-537.99520594,0.00041917,31]
[312594065,1706041853809,-550.0,0.00041917,31]
[312594066,1706041853819,-500.0,0.00041917,31]
[312594067,1706041853828,-500.0,0.00041917,31]
[312594068,1706041853837,-500.0,0.00041917,31]
[312594069,1706041853846,-500.0,0.00041917,31]
[312594070,1706041853856,-500.0,0.00041917,31]
[312594071,1706041853865,-507.04,0.00041917,31]
[312594072,1706041853874,-500.0,0.00041917,31]
[312594073,1706041853883,-1127.34,0.00041917,31]
[312594074,1706041853893,-500.0,0.00041917,31]
[312594075,1706041853902,-616.1843866,0.00041917,31]
[312594076,1706041853912,-500.0,0.00041917,31]
[312594077,1706041853921,-385.80067868,0.00041917,31]
[312594078,1706041853930,-500.0,0.00041917,31]
[312594079,1706041853939,-500.0,0.00041917,31]
[312594080,1706041853948,-500.0,0.00041917,31]
[312594081,1706041853957,-588.07640177,0.00041917,31]
[312594082,1706041853967,-500.0,0.00041917,31]
[312594083,1706041853976,-500.0,0.00041917,31]
[312594084,1706041853985,-500.0,0.00041917,31]
[312594085,1706041853994,-500.0,0.00041917,31]
[312594086,1706041854003,-507.96441406,0.00041917,31]
[312594087,1706041854011,-500.0,0.00041917,31]
[312594088,1706041854021,-500.0,0.00041917,31]
[312594089,1706041854030,-270.29294166,0.00041917,31]
[312594090,1706041854357,-424.21702039,0.00041095,31]
[312594091,1706041854367,-229.70705834,0.00041917,31]
[312594092,1706041854377,-513.27120478,0.00041917,31]
[312594093,1706041854387,-500.0,0.00041917,31]
[312594094,1706041854399,-500.0,0.00041917,31]
[312594095,1706041854408,-500.0,0.00041917,31]
[312594096,1706041854418,-502.36,0.00041917,31]
[312594097,1706041854427,-500.0,0.00041917,31]
[312594098,1706041854436,-500.0,0.00041917,31]
[312594099,1706041854445,-500.0,0.00041917,31]
[312594100,1706041854454,-500.0,0.00041917,31]
[312594101,1706041854464,-500.0,0.00041917,31]
[312594102,1706041854539,-500.0,0.00041917,31]
[312594103,1706041854548,-500.0,0.00041917,31]
[312594104,1706041854558,-1850.43,0.00041917,31]
[312594106,1706041854566,-54.53676698,0.00041917,31]
[312594107,1706041854751,-483.32323302,0.00041917,31]
[312594108,1706041854761,-671.22,0.00041917,31]
[312594109,1706041854770,-500.0,0.00041917,31]
[312594110,1706041854779,-446.9129245,0.00041917,31]
[312594111,1706041854931,-53.0870755,0.00041917,31]
[312594112,1706041854940,-121.07234998,0.00041917,31]
[312594144,1706042383883,205.87147002,0.0002,30]
[312594173,1706042853080,-154.86062544,0.00022992,4]
[312594174,1706042853099,-154.86062544,0.00022993,2]
[312594175,1706042853120,-1008.70692666,0.00023007,2]
[312594176,1706042853143,-721.2346018,0.00023007,2]
[312594177,1706042853165,-646.08891353,0.00023007,2]
[312594178,1706042853185,-160.7678217,0.00036753,2]
[312594179,1706042853204,-4736.81222173,0.00036983,4]
[312594180,1706042853225,-3159.86361142,0.00037509,2]
[312594212,1706043031974,-154.86062544,0.00035818,5]
[312594213,1706043031984,-158.20346316,0.00037508,4]
[312594214,1706043031993,-6642.91561608,0.00037509,2]
[312594215,1706043032002,-250.0,0.00037554,2]
[312594216,1706043032012,-312.663408,0.00037828,2]
[312594217,1706043032021,-1202.38744761,0.00037998,2]
[312594218,1706043032031,-301.91875218,0.00037998,4]
[312594219,1706043032039,-259.90986943,0.00037998,4]
[312594220,1706043032049,-206.18032623,0.00037999,4]
[312594221,1706043032058,-356.2080957,0.00037999,4]
[312594275,1706043038047,-1006.82024998,0.00037999,4]
[312594285,1706043038126,-1005.79926595,0.00037999,4]
[312594287,1706043038138,-2140.68079018,0.00039542,4]
[312594289,1706043038148,-391.7811236,0.00039543,2]
[312594291,1706043038158,-193.091,0.00039726,2]
[312594294,1706043038171,-250.0,0.00039726,2]
[312594296,1706043038180,-1746.24,0.0003979,3]
[312594298,1706043038190,-2491.97,0.0003979,3]
[312594300,1706043038199,-1476.61363302,0.0003979,3]
[312594302,1706043038211,-600.02636698,0.0003979,3]
[312594304,1706043038221,-1730.53,0.0003979,3]
[312594306,1706043038231,-2038.68616841,0.00039798,4]
[312594308,1706043038240,-211.49658438,0.00039799,4]
[312594310,1706043038249,-199688.96244487,0.000398,10]
[312594313,1706043038260,-4039.92765172,0.0003999,4]
[312594315,1706043038272,-190.7574491,0.0004,4]
[312594317,1706043038282,-1280.40064572,0.0004,4]
[312594319,1706043038291,-160.07349194,0.0004,4]
[312594321,1706043038301,-752.98797354,0.00041093,7]
[312594340,1706043038310,-500.0,0.00041095,7]
[312594342,1706043038484,-500.0,0.00041095,31]
[312594344,1706043038493,-500.0,0.00041095,31]
[312594346,1706043038503,-500.0,0.00041095,31]
[312594348,1706043038513,-500.0,0.00041095,31]
[312594351,1706043038522,-500.0,0.00041095,7]
[312594352,1706043038531,-548.1717107,0.00041095,31]
[312594354,1706043038541,-500.0,0.00041095,31]
[312594356,1706043038550,-500.0,0.00041095,31]
[312594357,1706043038559,-500.0,0.00041095,31]
[312594359,1706043038568,-500.0,0.00041095,31]
[312594360,1706043038577,-514.29671425,0.00041095,31]
[312594361,1706043038586,-601.01,0.00041095,31]
[312594362,1706043038596,-500.0,0.00041095,31]
[312594363,1706043038605,-500.0,0.00041095,31]
[312594364,1706043038615,-500.0,0.00041095,31]
[312594365,1706043038624,-514.53677532,0.00041095,31]
[312594366,1706043038633,-500.0,0.00041095,31]
[312594367,1706043038643,-500.0,0.00041095,31]
[312594368,1706043038652,-578.46,0.00041095,31]
[312594369,1706043038662,-500.0,0.00041095,31]
[312594370,1706043038672,-1595.06,0.00041095,2]
[312594371,1706043038681,-449.35199069,0.00041095,31]
[312594372,1706043038690,-500.0,0.00041095,31]
[312594373,1706043038699,-500.0,0.00041095,31]
[312594374,1706043038708,-500.0,0.00041095,31]
[312594375,1706043038717,-500.0,0.00041095,31]
[312594376,1706043038727,-500.0,0.00041095,31]
[312594377,1706043038737,-500.0,0.00041095,31]
[312594378,1706043038749,-500.0,0.00041095,31]
[312594379,1706043038758,-500.0,0.00041095,31]
[312594380,1706043038767,-500.0,0.00041095,31]
[312594381,1706043038776,-500.0,0.00041095,31]
[312594382,1706043038786,-503.33180468,0.00041095,31]
[312594383,1706043038796,-309.83729002,0.00041095,31]
[312594384,1706043038805,-560.65368585,0.00041095,31]
[312594385,1706043038814,-500.0,0.00041095,31]
[312594386,1706043038824,-500.0,0.00041095,31]
[312594387,1706043038835,-415.22868142,0.00041095,31]
[312594388,1706043038844,-165.33223906,0.00041095,31]
[312594389,1706043038854,-500.0,0.00041095,31]
[312594390,1706043038863,-607.99,0.00041095,31]
[312594391,1706043038874,-500.0,0.00041095,31]
[312594392,1706043038883,-500.0,0.00041095,31]
[312594393,1706043038893,-500.0,0.00041095,31]
[312594394,1706043038904,-500.0,0.00041095,31]
[312594395,1706043038916,-500.0,0.00041095,31]
[312594396,1706043038925,-500.0,0.00041095,31]
[312594397,1706043038935,-150.0,0.00041095,31]
[312594398,1706043038945,-560.37,0.00041095,31]
[312594399,1706043038954,-500.0,0.00041095,31]
[312594400,1706043038964,-500.0,0.00041095,31]
[312594401,1706043038973,-500.0,0.00041095,31]
[312594402,1706043038983,-500.0,0.00041095,31]
[312594403,1706043038993,-500.0,0.00041095,31]
[312594404,1706043039002,-500.0,0.00041095,31]
[312594405,1706043039012,-716.46,0.00041095,31]
[312594406,1706043039022,-330.59322695,0.00041095,31]
[312594407,1706043039031,-500.0,0.00041095,31]
[312594408,1706043039040,-1634.83,0.00041095,31]
[312594409,1706043039049,-334.99181515,0.00041095,31]
[312594410,1706043039058,-500.0,0.00041095,31]
[312594411,1706043039068,-659.0,0.00041095,31]
[312594412,1706043039077,-500.0,0.00041095,31]
[312594413,1706043039086,-1000.0,0.00041095,2]
[312594414,1706043039097,-10.68653307,0.00041095,31]
[312594415,1706043039143,-489.31346693,0.00041095,31]
[312594416,1706043039153,-1000.0,0.00041095,2]
[312594417,1706043039164,-566.47962975,0.00041095,31]
[312594418,1706043039173,-500.0,0.00041095,31]
[312594419,1706043039182,-500.0,0.00041095,31]
[312594420,1706043039192,-500.0,0.00041095,31]
[312594421,1706043039201,-829.74,0.00041095,31]
[312594422,1706043039211,-500.0,0.00041095,31]
[312594423,1706043039221,-500.0,0.00041095,31]
[312594424,1706043039231,-500.0,0.00041095,31]
[312594425,1706043039241,-500.0,0.00041095,31]
[312594426,1706043039250,-500.0,0.00041095,31]
[312594427,1706043039260,-787.39,0.00041095,31]
[312594428,1706043039269,-500.0,0.00041095,31]
[312594429,1706043039278,-714.96,0.00041095,31]
[312594430,1706043039288,-500.0,0.00041095,31]
[312594431,1706043039298,-500.0,0.00041095,31]
[312594432,1706043039308,-500.0,0.00041095,31]
[312594433,1706043039317,-500.0,0.00041095,31]
[312594434,1706043039327,-500.0,0.00041095,31]
[312594435,1706043039336,-500.0,0.00041095,31]
[312594436,1706043039345,-708.21,0.00041095,31]
[312594437,1706043039354,-599.76,0.00041095,31]
[312594438,1706043039363,-500.0,0.00041095,31]
[312594439,1706043039373,-500.0,0.00041095,20]
[312594440,1706043039382,-500.0,0.00041095,31]
[312594441,1706043039391,-225.52479713,0.00041095,31]
[312594442,1706043039401,-720.66,0.00041095,31]
[312594443,1706043039412,-534.05,0.00041095,31]
[312594444,1706043039422,-1102.06,0.00041095,31]
[312594445,1706043039432,-500.0,0.00041095,31]
[312594446,1706043039441,-863.49,0.00041095,31]
[312594447,1706043039450,-500.0,0.00041095,31]
[312594448,1706043039459,-500.0,0.00041095,31]
[312594449,1706043039470,-500.0,0.00041095,31]
[312594450,1706043039479,-500.0,0.00041095,31]
[312594451,1706043039488,-500.0,0.00041095,31]
[312594452,1706043039498,-500.0,0.00041095,31]
[312594453,1706043039508,-500.0,0.00041095,31]
[312594454,1706043039518,-455.48605977,0.00041095,31]
[312594455,1706043039527,-685.84,0.00041095,31]
[312594456,1706043039537,-500.0,0.00041095,31]
[312594457,1706043039547,-859.76,0.00041095,31]
[312594458,1706043039556,-500.0,0.00041095,31]
[312594459,1706043039566,-500.0,0.00041095,2]
[312594460,1706043039575,-500.0,0.00041095,31]
[312594461,1706043039585,-406.8276138,0.00041095,31]
[312594462,1706043039593,-503.7252797,0.00041095,31]
[312594463,1706043039603,-508.7,0.00041095,31]
[312594464,1706043039612,-214.9187677,0.00041095,31]
[312594465,1706043039622,-500.0,0.00041095,31]
[312594466,1706043039632,-500.0,0.00041095,31]
[312594467,1706043039642,-150.91379181,0.00041095,31]
[312594468,1706043039651,-1010.73,0.00041095,31]
[312594469,1706043039663,-500.0,0.00041095,31]
[312594470,1706043039672,-500.0,0.00041095,31]
[312594471,1706043039684,-500.0,0.00041095,7]
[312594472,1706043039694,-1307.7,0.00041095,31]
[312594473,1706043039703,-3807.5,0.00041095,31]
[312594474,1706043039713,-675.35,0.00041095,31]
[312594475,1706043039722,-500.0,0.00041095,31]
[312594476,1706043039735,-868.63,0.00041095,31]
[312594477,1706043039745,-500.0,0.00041095,31]
[312594478,1706043039755,-572.27,0.00041095,31]
[312594479,1706043039765,-500.0,0.00041095,31]
[312594480,1706043039776,-500.0,0.00041095,31]
[312594481,1706043039786,-500.0,0.00041095,31]
[312594482,1706043039795,-500.0,0.00041095,31]
[312594483,1706043039805,-500.0,0.00041095,31]
[312594484,1706043039814,-500.0,0.00041095,31]
[312594485,1706043039825,-500.0,0.00041095,31]
[312594486,1706043039835,-500.0,0.00041095,31]
[312594487,1706043039845,-500.0,0.00041095,31]
[312594488,1706043039854,-500.0,0.00041095,31]
[312594489,1706043039863,-500.0,0.00041095,31]
[312594490,1706043039873,-700.46,0.00041095,31]
[312594491,1706043039882,-466.33427644,0.00041095,31]
[312594492,1706043039892,-500.0,0.00041095,31]
[312594493,1706043039901,-542.7351685,0.00041095,31]
[312594494,1706043039912,-500.0,0.00041095,31]
[312594495,1706043039921,-696.46,0.00041095,31]
[312594496,1706043039930,-517.30729681,0.00041095,31]
[312594497,1706043039939,-2595.99,0.00041095,31]
[312594498,1706043039947,-519.15,0.00041095,31]
[312594499,1706043039956,-1302.99,0.00041095,31]
[312594500,1706043039965,-500.0,0.00041095,31]
[312594501,1706043039974,-2722.2,0.00041095,31]
[312594502,1706043039984,-500.0,0.00041095,31]
[312594503,1706043039994,-500.0,0.00041095,31]
[312594504,1706043040003,-3773.78,0.00041095,31]
[312594505,1706043040013,-710.87,0.00041095,31]
[312594506,1706043040022,-500.0,0.00041095,31]
[312594507,1706043040031,-500.0,0.00041095,31]
[312594508,1706043040041,-1465.07,0.00041095,31]
[312594509,1706043040050,-500.0,0.00041095,31]
[312594510,1706043040059,-3274.69,0.00041095,31]
[312594511,1706043040069,-1220.48,0.00041095,31]
[312594512,1706043040078,-889.77,0.00041095,31]
[312594513,1706043040088,-500.0,0.00041095,2]
[312594514,1706043040097,-500.0,0.00041095,31]
[312594515,1706043040106,-500.0,0.00041095,31]
[312594516,1706043040115,-500.0,0.00041095,31]
[312594517,1706043040125,-500.0,0.00041095,2]
[312594518,1706043040134,-500.0,0.00041095,31]
[312594519,1706043040143,-540.66,0.00041095,31]
[312594520,1706043040153,-1000.0,0.00041095,2]
[312594521,1706043040164,-185.5537441,0.00041095,31]
[312594522,1706043040173,-500.0,0.00041095,31]
[312594523,1706043040183,-501.89,0.00041095,31]
[312594524,1706043040192,-1557.77,0.00041095,31]
[312594525,1706043040201,-1779.05,0.00041095,31]
[312594527,1706043040211,-500.0,0.00041095,7]
[312594528,1706043040220,-500.0,0.00041095,31]
[312594530,1706043040229,-500.0,0.00041095,31]
[312594532,1706043040239,-500.0,0.00041095,31]
[312594533,1706043040257,-2111.5,0.00041095,31]
[312594534,1706043040269,-500.0,0.00041095,31]
[312594535,1706043040278,-500.0,0.00041095,31]
[312594536,1706043040288,-573.08864512,0.00041095,31]
[312594537,1706043040298,-24.73630664,0.00041095,31]
[312594544,1706043041053,-1269.01424092,0.0003979,3]
[312594545,1706043041065,-173.09575908,0.0003979,3]
[312594546,1706043041075,-2121.56369336,0.00041095,31]
[312594547,1706043041084,-757.18,0.00041095,31]
[312594548,1706043041094,-52.89096236,0.00041095,31]
[312594614,1706043042984,-474.75309652,0.00041095,31]
[312594616,1706043042993,-500.0,0.00041095,31]
[312594618,1706043043001,-655.01,0.00041095,31]
[312594620,1706043043010,-553.54,0.00041095,31]
[312594622,1706043043018,-25295.5,0.00041095,14]
[312594624,1706043043028,-792.54,0.00041095,31]
[312594625,1706043043038,-1287.48,0.00041095,31]
[312594627,1706043043047,-881.57,0.00041095,31]
[312594630,1706043043057,-500.0,0.00041095,31]
[312594632,1706043043066,-500.0,0.00041095,31]
[312594634,1706043043075,-500.0,0.00041095,31]
[312594636,1706043043084,-1009.29,0.00041095,31]
[312594638,1706043043094,-10555.34,0.00041095,31]
[312594639,1706043043103,-500.0,0.00041095,31]
[312594641,1706043043112,-500.0,0.00041095,31]
[312594643,1706043043121,-500.0,0.00041095,31]
[312594646,1706043043131,-696.94,0.00041095,31]
[312594648,1706043043141,-500.0,0.00041095,31]
[312594650,1706043043150,-500.0,0.00041095,31]
[312594651,1706043043160,-784.95,0.00041095,31]
[312594652,1706043043170,-500.0,0.00041095,31]
[312594653,1706043043179,-1562.78,0.00041095,31]
[312594654,1706043043189,-598.86,0.00041095,31]
[312594655,1706043043198,-500.0,0.00041095,31]
[312594656,1706043043207,-500.0,0.00041095,31]
[312594657,1706043043216,-500.0,0.00041095,31]
[312594658,1706043043225,-500.0,0.00041095,31]
[312594659,1706043043234,-500.0,0.00041095,31]
[312594660,1706043043243,-1759.46,0.00041095,31]
[312594661,1706043043252,-500.0,0.00041095,31]
[312594662,1706043043261,-500.0,0.00041095,31]
[312594663,1706043043270,-500.0,0.00041095,31]
[312594664,1706043043280,-500.0,0.00041095,31]
[312594665,1706043043288,-500.0,0.00041095,31]
[312594666,1706043043298,-500.0,0.00041095,31]
[312594667,1706043043307,-500.0,0.00041095,31]
[312594668,1706043043431,-500.0,0.00041095,31]
[312594669,1706043043442,-1322.23,0.00041095,31]
[312594670,1706043043451,-500.0,0.00041095,31]
[312594671,1706043043461,-500.0,0.00041095,31]
[312594672,1706043043470,-611.72,0.00041095,31]
[312594673,1706043043479,-3601.44,0.00041095,31]
[312594674,1706043043490,-500.0,0.00041095,31]
[312594675,1706043043498,-3277.1,0.00041095,31]
[312594676,1706043043509,-500.0,0.00041095,31]
[312594677,1706043043518,-500.0,0.00041095,31]
[312594678,1706043043527,-500.0,0.00041095,31]
[312594679,1706043043537,-500.0,0.00041095,31]
[312594680,1706043043546,-500.0,0.00041095,31]
[312594681,1706043043555,-1291.37,0.00041095,31]
[312594682,1706043043564,-500.0,0.00041095,31]
[312594683,1706043043574,-500.0,0.00041095,31]
[312594684,1706043043583,-500.0,0.00041095,31]
[312594685,1706043043591,-500.0,0.00041095,31]
[312594686,1706043043601,-852.69,0.00041095,31]
[312594687,1706043043610,-151.0,0.00041099,21]
[312594688,1706043043620,-150.90762598,0.00041208,30]
[312594689,1706043043631,-14403.50051279,0.00041269,2]
[312594690,1706043043641,-27984.64629359,0.00041269,5]
[312594691,1706043043660,-3005.07137425,0.00041269,5]
[312594692,1706043043714,-0.00287647,0.00041269,5]
[312594707,1706043046188,-500.0,0.00041095,31]
[312594708,1706043046197,-216.68924705,0.00041269,5]
[312594711,1706043273882,6000.0,0.00018,2]
[312594789,1706044145107,-154.86062544,0.00022885,4]
[312594790,1706044145129,-154.86062544,0.00022886,2]
[312594791,1706044145151,-163.34436665,0.00022891,2]
[312594792,1706044145175,-302.612078,0.00023007,2]
[312594793,1706044145198,-161.52222839,0.00023007,2]
[312594794,1706044145235,-4120.88454341,0.00028,2]
[312594795,1706044145259,-17346.0170869,0.00031669,2]
[312594796,1706044145282,-264.020091,0.00032958,2]
[312594797,1706044157139,124.97655449,0.00033208,5]
[312594824,1706044233161,-29.88407095,0.00033208,5]
[312594825,1706044233172,-158.20346316,0.00036889,4]
[312594826,1706044233184,-2154.23,0.0003689,3]
[312594827,1706044233193,-1795.19,0.0003689,3]
[312594828,1706044233202,-1495.99,0.0003689,3]
[312594829,1706044233211,-1246.66,0.0003689,3]
[312594830,1706044233221,-1005.79926595,0.00036899,4]
[312594831,1706044233231,-500.0,0.00036899,10]
[312594832,1706044233240,-500.0,0.00036899,10]
[312594834,1706044233249,-523.91944735,0.00036899,10]
[312594835,1706044233262,-0.29903762,0.00036899,10]
[312594836,1706044233271,-500.0,0.00036899,10]
[312594837,1706044233280,-500.0,0.00036899,10]
[312594838,1706044233289,-500.0,0.00036899,10]
[312594839,1706044233298,-500.0,0.00036899,10]
[312594840,1706044233307,-500.0,0.00036899,10]
[312594841,1706044233316,-500.0,0.00036899,10]
[312594842,1706044233325,-311.37143275,0.00036899,10]
[312594843,1706044233334,-500.0,0.00036899,10]
[312594844,1706044233343,-500.0,0.00036899,10]
[312594845,1706044233352,-500.0,0.00036899,10]
[312594846,1706044233361,-500.0,0.00036899,10]
[312594847,1706044233372,-500.0,0.00036899,10]
[312594848,1706044233381,-500.0,0.00036899,10]
[312594849,1706044233390,-443.77205437,0.00036899,10]
[312594850,1706044233399,-251.19600661,0.00036899,10]
[312594851,1706044233419,-248.80399339,0.00036899,10]
[312594852,1706044233428,-330.97440629,0.00036899,10]
[312594853,1706044233436,-500.0,0.00036899,10]
[312594854,1706044233444,-500.0,0.00036899,10]
[312594855,1706044233454,-500.0,0.00036899,10]
[312594856,1706044233463,-500.0,0.00036899,10]
[312594857,1706044233471,-355.87137996,0.00036899,10]
[312594890,1706044238209,-144.12862004,0.00036899,10]
[312594893,1706044238260,-500.0,0.00036899,10]
[312594894,1706044238269,-355.30849996,0.00036899,10]
[312594897,1706044238281,-144.69150004,0.00036899,10]
[312594899,1706044238289,-500.0,0.00036899,10]
[312594900,1706044238299,-500.0,0.00036899,10]
[312594902,1706044238308,-500.0,0.00036899,10]
[312594906,1706044238327,-500.0,0.00036899,10]
[312594908,1706044238338,-500.0,0.00036899,10]
[312594910,1706044238348,-500.0,0.00036899,10]
[312594912,1706044238357,-500.0,0.00036899,10]
[312594914,1706044238366,-500.0,0.00036899,10]
[312594916,1706044238376,-500.0,0.00036899,10]
[312594918,1706044238386,-365.9299309,0.00036899,10]
[312594919,1706044238395,-316.52205841,0.00036899,10]
[312594920,1706044238404,-11127.17389602,0.000369,10]
[312594921,1706044238418,-9696.17581275,0.000369,10]
[312594922,1706044238430,-100708.95956388,0.000369,10]
[312594967,1706044241202,-1038.88,0.0003689,3]
[312594968,1706044241212,-8059.49102237,0.000369,10]
[312594969,1706044241226,-50047.29469349,0.000369,10]
[312594974,1706044243308,-18058.10363355,0.000369,10]
[312594976,1706044243320,-6270.231987,0.000369,10]
[312595051,1706045346104,-154.86062544,0.00027604,2]
[312595052,1706045346125,-154.86062544,0.00027605,4]
[312595053,1706045346147,-192.31829469,0.00027612,2]
[312595054,1706045346168,-166.26751581,0.00027612,2]
[312595055,1706045355099,-166.666666,0.00034697,2]
[312595056,1706045355119,-174.15942548,0.000348,2]
[312595096,1706045432388,-154.86062544,0.00033208,5]
[312595098,1706045432397,-158.20346316,0.00034799,4]
[312595100,1706045432407,-524.69130111,0.000348,2]
[312595102,1706045432416,-351.52136299,0.000348,4]
[312595104,1706045432425,-69.14248579,0.000348,2]
[312595106,1706045432437,-439.565,0.000348,2]
[312595135,1706045438712,-1945.0418108,0.000348,2]
[312595136,1706045438721,-1026.65405285,0.000348,2]
[312595137,1706045438730,-592.15140102,0.00035,2]
[312595138,1706045438739,-8233.9298283,0.00035344,2]
[312595140,1706045438748,-164.664524,0.00035616,2]
[312595141,1706045438756,-164.664524,0.00035616,2]
[312595142,1706045438765,-164.664524,0.00035616,2]
[312595143,1706045438775,-164.664524,0.00035616,2]
[312595145,1706045438785,-164.664524,0.00035616,2]
[312595146,1706045438794,-827.79,0.0003689,3]
[312595148,1706045438804,-1697.98423849,0.00036898,4]
[312595150,1706045438813,-1117.11167906,0.00036898,7]
[312595151,1706045438822,-288.64103576,0.00036898,4]
[312595152,1706045438831,-2086.84800856,0.00036899,4]
[312595154,1706045438840,-56597.32107705,0.000369,10]
[312595156,1706045438851,-550.90450291,0.000369,10]
[312595158,1706045438862,-9696.17581275,0.000369,10]
[312595161,1706045438875,-53283.46040704,0.000369,10]
[312595163,1706045438886,-870.36637623,0.000369,10]
[312595450,1706045446612,-1645.56885178,0.000369,10]
[312595455,1706046556095,-154.84515485,0.00034343,5]
[312595456,1706046556116,-0.01834706,0.00034346,120]
[312595457,1706046573606,154.84515485,0.00033208,5]
[312595458,1706046589654,49.6451838,0.00033208,5]
[312595459,1706046589684,105.19997105,0.00033208,5]
[312595460,1706046607608,55.56785065,0.00033208,5]
[312595488,1706046632614,-287.92256871,0.00032875,120]
[312595489,1706046632623,-158.20346316,0.00033207,4]
[312595491,1706046632633,-70.45833316,0.00033208,5]
[312595493,1706046632645,-28.81897104,0.00033208,5]
[312595494,1706046632655,-166.666666,0.00034702,2]
[312595496,1706046632664,-763.82268996,0.000348,2]
[312595498,1706046632673,-197.21627928,0.000348,2]
[312595509,1706046638611,-300.0,0.00033208,4]
[312595510,1706046638620,-1629.07426861,0.000348,2]
[312595511,1706046638630,-197.82246654,0.000348,4]
[312595512,1706046638642,-122.57897105,0.000348,4]
[312595513,1706046638651,-465.90048439,0.000348,2]
[312595514,1706046638660,-379.4411428,0.00035187,30]
[312595515,1706046638669,-1263.03109601,0.00035194,2]
[312595516,1706046638681,-524.50231809,0.00035194,2]
[312595517,1706046638690,-345.382412,0.00035368,2]
[312595518,1706046638699,-154.75239617,0.00036716,2]
[312595519,1706046638708,-243.07986373,0.00036898,4]
[312595520,1706046638718,-343.61549238,0.00036898,4]
[312595521,1706046638727,-1577.23828043,0.00036898,4]
[312595522,1706046638736,-678.20873721,0.00036898,4]
[312595523,1706046638745,-601.05812655,0.00036898,4]
[312595524,1706046638754,-2136.63743435,0.00036898,4]
[312595525,1706046638763,-592.15140102,0.00036899,2]
[312595526,1706046638773,-836.6793673,0.00036899,120]
[312595527,1706046638782,-7136.69417077,0.00036899,4]
[312595529,1706046638793,-2069.48720006,0.00036899,4]
[312595531,1706046638802,-109118.39094724,0.000369,10]
[312595533,1706046638814,-9696.17581275,0.000369,10]
[312595539,1706046641991,-20932.27364092,0.000369,10]
[312595569,1706047628090,-154.84515485,0.00024999,4]
[312595570,1706047628111,-161.52210278,0.00025,10]